[Event "Titled Tuesday Blitz February 01 A 2022"]
[White "Garcia Martin, Marta"]
[Black "Babazada, Khazar"]
[WhiteFideId "32084030"]
[BlackFideId "13413554"]
[WhiteElo "2102"]
[BlackElo "2418"]
[Result "1-0"]
[Round "06"]
[TimeControl "180+1"]
[Date "2022.02.01"]
[WhiteClock "0:00:06"]
[BlackClock "0:00:14"]

1. Nf3 {[%clk 0:03:00]}  g6 {[%clk 0:02:59]} 2. e4 {[%clk 0:02:58]}  Bg7 {[%clk 0:03:00]} 3. d4 {[%clk 0:02:58]}  d6 {[%clk 0:03:00]} 4. Bc4 {[%clk 0:02:58]}  Nf6 {[%clk 0:02:59]} 5. Qe2 {[%clk 0:02:58]}  O-O {[%clk 0:02:58]} 6. e5 {[%clk 0:02:56]}  Nfd7 {[%clk 0:02:56]} 7. h4 {[%clk 0:02:55]}  d5 {[%clk 0:02:39]} 8. Bb3 {[%clk 0:02:52]}  h5 {[%clk 0:02:37]} 9. g4 {[%clk 0:02:41]}  hxg4 {[%clk 0:02:36]} 10. Ng5 {[%clk 0:02:40]}  Nc6 {[%clk 0:02:32]} 11. Be3 {[%clk 0:02:32]}  Ndxe5 {[%clk 0:02:32]} 12. dxe5 {[%clk 0:02:28]}  Nxe5 {[%clk 0:02:26]} 13. h5 {[%clk 0:02:24]}  Bf5 {[%clk 0:02:22]} 14. hxg6 {[%clk 0:02:14]}  Bxg6 {[%clk 0:02:22]} 15. Bd4 {[%clk 0:02:13]}  Qd6 {[%clk 0:02:14]} 16. Nc3 {[%clk 0:02:11]}  Nf3+ {[%clk 0:02:10]} 17. Nxf3 {[%clk 0:02:04]}  gxf3 {[%clk 0:02:10]} 18. Qe3 {[%clk 0:02:05]}  e5 {[%clk 0:01:28]} 19. Nxd5 {[%clk 0:02:03]}  exd4 {[%clk 0:01:24]} 20. Ne7+ {[%clk 0:01:49]}  Qxe7 {[%clk 0:01:24]} 21. Qxe7 {[%clk 0:01:50]}  Rfe8 {[%clk 0:01:23]} 22. Qxe8+ {[%clk 0:01:46]}  Rxe8+ {[%clk 0:01:24]} 23. Kf1 {[%clk 0:01:47]}  d3 {[%clk 0:01:13]} 24. Re1 {[%clk 0:01:38]}  Re2 {[%clk 0:01:06]} 25. cxd3 {[%clk 0:01:26]}  Bxd3 {[%clk 0:01:05]} 26. Rxe2 {[%clk 0:01:26]}  fxe2+ {[%clk 0:01:06]} 27. Ke1 {[%clk 0:01:26]}  Bxb2 {[%clk 0:01:06]} 28. Kd2 {[%clk 0:01:16]}  Ba6 {[%clk 0:01:06]} 29. Bd5 {[%clk 0:01:09]}  Ba3 {[%clk 0:01:06]} 30. Rh4 {[%clk 0:01:01]}  c5 {[%clk 0:01:05]} 31. Bc4 {[%clk 0:00:55]}  Bb4+ {[%clk 0:00:29]} 32. Kxe2 {[%clk 0:00:54]}  b5 {[%clk 0:00:29]} 33. Bd5 {[%clk 0:00:45]}  c4 {[%clk 0:00:29]} 34. Rf4 {[%clk 0:00:33]}  Bc5 {[%clk 0:00:29]} 35. Rxf7 {[%clk 0:00:30]}  Kh8 {[%clk 0:00:30]} 36. Bb7 {[%clk 0:00:17]}  Bxb7 {[%clk 0:00:26]} 37. Rxb7 {[%clk 0:00:18]}  Bb6 {[%clk 0:00:27]} 38. f4 {[%clk 0:00:15]}  Kg8 {[%clk 0:00:26]} 39. f5 {[%clk 0:00:15]}  b4 {[%clk 0:00:26]} 40. Rd7 {[%clk 0:00:08]}  Kf8 {[%clk 0:00:26]} 41. Rb7 {[%clk 0:00:05]}  Ke8 {[%clk 0:00:23]} 42. Kd2 {[%clk 0:00:05]}  Kd8 {[%clk 0:00:21]} 43. Kc2 {[%clk 0:00:06]}  Kc8 {[%clk 0:00:21]} 44. Rh7 {[%clk 0:00:05]}  Kd8 {[%clk 0:00:20]} 45. Rh4 {[%clk 0:00:06]}  b3+ {[%clk 0:00:17]} 46. axb3 {[%clk 0:00:05]}  cxb3+ {[%clk 0:00:18]} 47. Kxb3 {[%clk 0:00:06]}  Ke7 {[%clk 0:00:19]} 48. Rh6 {[%clk 0:00:06]}  Kf7 {[%clk 0:00:19]} 49. Rc6 {[%clk 0:00:06]}  Bd8 {[%clk 0:00:17]} 50. Kc4 {[%clk 0:00:06]}  a5 {[%clk 0:00:17]} 51. Ra6 {[%clk 0:00:05]}  a4 {[%clk 0:00:17]} 52. Kd5 {[%clk 0:00:04]}  Be7 {[%clk 0:00:17]} 53. Rxa4 {[%clk 0:00:03]}  Kf6 {[%clk 0:00:16]} 54. Ke4 {[%clk 0:00:04]}  Kg5 {[%clk 0:00:16]} 55. Ra6 {[%clk 0:00:05]}  Bf6 {[%clk 0:00:16]} 56. Re6 {[%clk 0:00:05]}  Bd8 {[%clk 0:00:13]} 57. Rg6+ {[%clk 0:00:05]}  Kh5 {[%clk 0:00:14]} 58. Ke5 {[%clk 0:00:05]}  Ba5 {[%clk 0:00:13]} 59. Ke6 {[%clk 0:00:06]}  Bb4 {[%clk 0:00:13]} 60. Rg2 {[%clk 0:00:06]}  Kh6 {[%clk 0:00:14]} 61. f6 {[%clk 0:00:06]} 1-0


[Site "https://www.chess.com"]

[Event "Titled Tuesday Blitz February 01 A 2022"]
[White "Garriga Cazorla, Pere"]
[Black "Aravindh, Chithambaram VR."]
[WhiteFideId "32011601"]
[BlackFideId "5072786"]
[WhiteElo "2458"]
[BlackElo "2561"]
[Result "1/2-1/2"]
[Round "06"]
[TimeControl "180+1"]
[Date "2022.02.01"]
[WhiteClock "0:00:23"]
[BlackClock "0:00:08"]

1. d4 {[%clk 0:03:00]}  f5 {[%clk 0:02:57]} 2. c4 {[%clk 0:02:57]}  Nf6 {[%clk 0:02:57]} 3. Nc3 {[%clk 0:02:57]}  g6 {[%clk 0:02:56]} 4. Nf3 {[%clk 0:02:45]}  Bg7 {[%clk 0:02:56]} 5. g3 {[%clk 0:02:45]}  O-O {[%clk 0:02:55]} 6. Bg2 {[%clk 0:02:46]}  d6 {[%clk 0:02:55]} 7. O-O {[%clk 0:02:46]}  c6 {[%clk 0:02:56]} 8. d5 {[%clk 0:02:46]}  e5 {[%clk 0:02:16]} 9. dxe6 {[%clk 0:02:46]}  Bxe6 {[%clk 0:02:12]} 10. b3 {[%clk 0:02:46]}  Kh8 {[%clk 0:01:55]} 11. Qc2 {[%clk 0:02:37]}  Na6 {[%clk 0:01:48]} 12. Rd1 {[%clk 0:02:37]}  Qe7 {[%clk 0:01:48]} 13. Bb2 {[%clk 0:02:37]}  Nc5 {[%clk 0:01:44]} 14. e3 {[%clk 0:02:30]}  Bg8 {[%clk 0:01:32]} 15. Ne2 {[%clk 0:02:30]}  Nce4 {[%clk 0:01:30]} 16. Nf4 {[%clk 0:02:22]}  Rae8 {[%clk 0:01:17]} 17. Rac1 {[%clk 0:01:48]}  Bf7 {[%clk 0:00:59]} 18. Nd3 {[%clk 0:01:47]}  g5 {[%clk 0:00:56]} 19. c5 {[%clk 0:01:22]}  d5 {[%clk 0:00:47]} 20. Nd4 {[%clk 0:01:22]}  Bg6 {[%clk 0:00:47]} 21. f3 {[%clk 0:01:22]}  Nxg3 {[%clk 0:00:23]} 22. hxg3 {[%clk 0:01:23]}  f4 {[%clk 0:00:19]} 23. exf4 {[%clk 0:00:37]}  gxf4 {[%clk 0:00:18]} 24. gxf4 {[%clk 0:00:34]}  Nh5 {[%clk 0:00:13]} 25. Re1 {[%clk 0:00:30]}  Qh4 {[%clk 0:00:09]} 26. Qf2 {[%clk 0:00:30]}  Qd8 {[%clk 0:00:04]} 27. Ne5 {[%clk 0:00:22]}  Nxf4 {[%clk 0:00:03]} 28. Nxg6+ {[%clk 0:00:21]}  hxg6 {[%clk 0:00:04]} 29. Rxe8 {[%clk 0:00:20]}  Rxe8 {[%clk 0:00:05]} 30. Re1 {[%clk 0:00:20]}  Rxe1+ {[%clk 0:00:03]} 31. Qxe1 {[%clk 0:00:21]}  Qg5 {[%clk 0:00:04]} 32. Qf1 {[%clk 0:00:15]}  Qg3 {[%clk 0:00:03]} 33. Ba1 {[%clk 0:00:12]}  Nh3+ {[%clk 0:00:03]} 34. Kh1 {[%clk 0:00:13]}  Nf2+ {[%clk 0:00:03]} 35. Kg1 {[%clk 0:00:13]}  Nh3+ {[%clk 0:00:04]} 36. Kh1 {[%clk 0:00:14]}  Nf4 {[%clk 0:00:04]} 37. Ne2 {[%clk 0:00:13]}  Qh4+ {[%clk 0:00:04]} 38. Kg1 {[%clk 0:00:13]}  Nxe2+ {[%clk 0:00:03]} 39. Qxe2 {[%clk 0:00:14]}  Bxa1 {[%clk 0:00:04]} 40. Qe8+ {[%clk 0:00:14]}  Kh7 {[%clk 0:00:04]} 41. Qd7+ {[%clk 0:00:14]}  Kh6 {[%clk 0:00:02]} 42. Qh3 {[%clk 0:00:15]}  Bd4+ {[%clk 0:00:02]} 43. Kf1 {[%clk 0:00:15]}  Qxh3 {[%clk 0:00:01]} 44. Bxh3 {[%clk 0:00:16]}  Bxc5 {[%clk 0:00:02]} 45. Bc8 {[%clk 0:00:16]}  b6 {[%clk 0:00:02]} 46. Bb7 {[%clk 0:00:17]}  Be3 {[%clk 0:00:02]} 47. Bxc6 {[%clk 0:00:18]}  d4 {[%clk 0:00:03]} 48. Ke2 {[%clk 0:00:18]}  Kg5 {[%clk 0:00:04]} 49. Bd7 {[%clk 0:00:18]}  Kf4 {[%clk 0:00:04]} 50. Bg4 {[%clk 0:00:17]}  g5 {[%clk 0:00:04]} 51. Kd3 {[%clk 0:00:18]}  Kg3 {[%clk 0:00:04]} 52. a4 {[%clk 0:00:19]}  Kf2 {[%clk 0:00:04]} 53. Bh5 {[%clk 0:00:19]}  Ke1 {[%clk 0:00:04]} 54. Bg4 {[%clk 0:00:19]}  a5 {[%clk 0:00:04]} 55. Bh5 {[%clk 0:00:20]}  Kf2 {[%clk 0:00:04]} 56. Bg4 {[%clk 0:00:20]}  Kg3 {[%clk 0:00:04]} 57. Bh5 {[%clk 0:00:20]}  Kf4 {[%clk 0:00:05]} 58. Bg4 {[%clk 0:00:21]}  Ke5 {[%clk 0:00:06]} 59. Ke2 {[%clk 0:00:20]}  Kd5 {[%clk 0:00:06]} 60. Kd3 {[%clk 0:00:21]}  Kc5 {[%clk 0:00:06]} 61. Bh5 {[%clk 0:00:22]}  Kb4 {[%clk 0:00:07]} 62. Bf7 {[%clk 0:00:22]}  Bg1 {[%clk 0:00:06]} 63. Bg8 {[%clk 0:00:23]}  b5 {[%clk 0:00:04]} 64. axb5 {[%clk 0:00:22]}  Kxb5 {[%clk 0:00:05]} 65. Bc4+ {[%clk 0:00:23]}  Kc5 {[%clk 0:00:04]} 66. Be6 {[%clk 0:00:24]}  Kd6 {[%clk 0:00:04]} 67. Bg4 {[%clk 0:00:24]}  Kd5 {[%clk 0:00:05]} 68. Bh5 {[%clk 0:00:24]}  Ke6 {[%clk 0:00:05]} 69. Bg4+ {[%clk 0:00:24]}  Ke5 {[%clk 0:00:05]} 70. Bh5 {[%clk 0:00:24]}  Kf4 {[%clk 0:00:05]} 71. Bg4 {[%clk 0:00:25]}  Be3 {[%clk 0:00:05]} 72. Bh5 {[%clk 0:00:25]}  Ke5 {[%clk 0:00:06]} 73. Bg4 {[%clk 0:00:25]}  Bc1 {[%clk 0:00:06]} 74. Bh5 {[%clk 0:00:26]}  Ba3 {[%clk 0:00:07]} 75. Bg4 {[%clk 0:00:26]}  Bc5 {[%clk 0:00:08]} 76. Bh5 {[%clk 0:00:26]}  Bb6 {[%clk 0:00:09]} 77. Bg4 {[%clk 0:00:27]}  Kd6 {[%clk 0:00:09]} 78. Bh5 {[%clk 0:00:27]}  Kc5 {[%clk 0:00:08]} 79. Bg4 {[%clk 0:00:27]}  a4 {[%clk 0:00:08]} 80. bxa4 {[%clk 0:00:27]}  Kb4 {[%clk 0:00:08]} 81. Bd7 {[%clk 0:00:27]}  Kc5 {[%clk 0:00:08]} 82. Be8 {[%clk 0:00:27]}  Kd5 {[%clk 0:00:08]} 83. Bd7 {[%clk 0:00:26]}  Ke5 {[%clk 0:00:08]} 84. Bg4 {[%clk 0:00:25]}  Kd5 {[%clk 0:00:08]} 85. Bd7 {[%clk 0:00:25]}  Kc5 {[%clk 0:00:08]} 86. Be8 {[%clk 0:00:24]}  Bc7 {[%clk 0:00:08]} 87. Bh5 {[%clk 0:00:23]} 1/2-1/2


[Site "https://www.chess.com"]

[Event "Titled Tuesday Blitz February 01 A 2022"]
[White "Gelman, Alexander"]
[Black "Svane, Rasmus"]
[WhiteFideId "4118316"]
[BlackFideId "4657101"]
[WhiteElo "2375"]
[BlackElo "2645"]
[Result "0-1"]
[Round "06"]
[TimeControl "180+1"]
[Date "2022.02.01"]
[WhiteClock "0:00:12"]
[BlackClock "0:00:12"]

1. d4 {[%clk 0:03:00]}  Nf6 {[%clk 0:02:58]} 2. Nc3 {[%clk 0:03:01]}  d5 {[%clk 0:02:58]} 3. Bf4 {[%clk 0:03:01]}  c5 {[%clk 0:02:59]} 4. e3 {[%clk 0:03:01]}  cxd4 {[%clk 0:02:59]} 5. exd4 {[%clk 0:03:02]}  a6 {[%clk 0:03:00]} 6. Nf3 {[%clk 0:03:02]}  Nc6 {[%clk 0:03:01]} 7. Ne5 {[%clk 0:03:02]}  Bd7 {[%clk 0:03:01]} 8. Qd2 {[%clk 0:03:02]}  e6 {[%clk 0:03:01]} 9. f3 {[%clk 0:03:03]}  Qa5 {[%clk 0:02:55]} 10. g4 {[%clk 0:02:54]}  Rc8 {[%clk 0:02:51]} 11. a3 {[%clk 0:02:47]}  Bb4 {[%clk 0:02:38]} 12. Rb1 {[%clk 0:02:45]}  Be7 {[%clk 0:02:29]} 13. h4 {[%clk 0:02:40]}  Qb6 {[%clk 0:02:21]} 14. Nxc6 {[%clk 0:02:34]}  Bxc6 {[%clk 0:02:20]} 15. h5 {[%clk 0:02:19]}  h6 {[%clk 0:02:20]} 16. Be5 {[%clk 0:02:08]}  Qd8 {[%clk 0:02:14]} 17. Nd1 {[%clk 0:01:54]}  Bd6 {[%clk 0:02:12]} 18. Qf4 {[%clk 0:01:42]}  Bxe5 {[%clk 0:02:12]} 19. Qxe5 {[%clk 0:01:42]}  Ba4 {[%clk 0:02:11]} 20. c3 {[%clk 0:01:40]}  Bxd1 {[%clk 0:02:08]} 21. Rxd1 {[%clk 0:01:39]}  Qc7 {[%clk 0:02:05]} 22. Qe3 {[%clk 0:01:31]}  Ke7 {[%clk 0:01:54]} 23. Kf2 {[%clk 0:01:26]}  b5 {[%clk 0:01:39]} 24. Bd3 {[%clk 0:01:21]}  Qd6 {[%clk 0:01:34]} 25. Kg2 {[%clk 0:01:19]}  Kd7 {[%clk 0:01:27]} 26. Rhe1 {[%clk 0:01:18]}  Kc7 {[%clk 0:01:26]} 27. a4 {[%clk 0:01:17]}  Kb6 {[%clk 0:00:55]} 28. axb5 {[%clk 0:01:12]}  axb5 {[%clk 0:00:55]} 29. Be2 {[%clk 0:01:06]}  Ra8 {[%clk 0:00:53]} 30. Qd3 {[%clk 0:01:04]}  Qc6 {[%clk 0:00:54]} 31. b3 {[%clk 0:00:55]}  Rhc8 {[%clk 0:00:52]} 32. Rc1 {[%clk 0:00:52]}  Ra2 {[%clk 0:00:49]} 33. Kg1 {[%clk 0:00:45]}  Rb2 {[%clk 0:00:36]} 34. c4 {[%clk 0:00:38]}  dxc4 {[%clk 0:00:35]} 35. bxc4 {[%clk 0:00:39]}  bxc4 {[%clk 0:00:36]} 36. Qc3 {[%clk 0:00:28]}  Rb3 {[%clk 0:00:35]} 37. Rb1 {[%clk 0:00:28]}  Kc7 {[%clk 0:00:22]} 38. Rxb3 {[%clk 0:00:26]}  cxb3 {[%clk 0:00:23]} 39. Qxb3 {[%clk 0:00:27]}  Qd6 {[%clk 0:00:20]} 40. Kg2 {[%clk 0:00:22]}  Kd8 {[%clk 0:00:19]} 41. Rd1 {[%clk 0:00:20]}  Nd5 {[%clk 0:00:19]} 42. Bb5 {[%clk 0:00:16]}  Rc3 {[%clk 0:00:17]} 43. Qa4 {[%clk 0:00:15]}  Ne3+ {[%clk 0:00:16]} 44. Kf2 {[%clk 0:00:14]}  Qh2+ {[%clk 0:00:16]} 45. Ke1 {[%clk 0:00:13]}  Nc2+ {[%clk 0:00:12]} 46. Kf1 {[%clk 0:00:12]}  Rxf3# {[%clk 0:00:12]} 0-1


[Site "https://www.chess.com"]

[Event "Titled Tuesday Blitz February 01 A 2022"]
[White "Hansen, Eric"]
[Black "Kobalia, Mikhail"]
[WhiteFideId "2606771"]
[BlackFideId "4119150"]
[WhiteElo "2959"]
[BlackElo "2814"]
[Result "1-0"]
[Round "06"]
[TimeControl "180+1"]
[Date "2022.02.01"]
[WhiteClock "0:00:03"]
[BlackClock "0:00:01"]

1. e4 {[%clk 0:02:59]}  c5 {[%clk 0:03:00]} 2. Nf3 {[%clk 0:02:59]}  e6 {[%clk 0:03:00]} 3. d4 {[%clk 0:02:58]}  cxd4 {[%clk 0:03:00]} 4. Nxd4 {[%clk 0:02:59]}  Nc6 {[%clk 0:03:00]} 5. Nc3 {[%clk 0:02:59]}  a6 {[%clk 0:03:00]} 6. Nxc6 {[%clk 0:02:46]}  bxc6 {[%clk 0:02:59]} 7. Bd3 {[%clk 0:02:47]}  d5 {[%clk 0:02:59]} 8. O-O {[%clk 0:02:47]}  Nf6 {[%clk 0:03:00]} 9. Qe2 {[%clk 0:02:46]}  Be7 {[%clk 0:03:00]} 10. b3 {[%clk 0:02:44]}  O-O {[%clk 0:02:56]} 11. Bb2 {[%clk 0:02:43]}  a5 {[%clk 0:02:56]} 12. Na4 {[%clk 0:02:40]}  Bb7 {[%clk 0:02:51]} 13. c4 {[%clk 0:02:35]}  Ba6 {[%clk 0:02:25]} 14. Rad1 {[%clk 0:02:34]}  Qc7 {[%clk 0:02:18]} 15. cxd5 {[%clk 0:01:59]}  Bxd3 {[%clk 0:02:17]} 16. Rxd3 {[%clk 0:02:00]}  cxd5 {[%clk 0:02:18]} 17. Bxf6 {[%clk 0:02:00]}  Bxf6 {[%clk 0:02:17]} 18. exd5 {[%clk 0:02:01]}  exd5 {[%clk 0:02:16]} 19. Rxd5 {[%clk 0:02:01]}  Rfe8 {[%clk 0:02:15]} 20. Qf3 {[%clk 0:02:01]}  Qc2 {[%clk 0:02:11]} 21. Nb6 {[%clk 0:01:55]}  Rad8 {[%clk 0:01:57]} 22. Rxa5 {[%clk 0:01:55]}  Rd2 {[%clk 0:01:34]} 23. Nc4 {[%clk 0:01:21]}  Rd3 {[%clk 0:01:19]} 24. Ra8 {[%clk 0:01:07]}  Rxa8 {[%clk 0:01:18]} 25. Qxa8+ {[%clk 0:01:07]}  Rd8 {[%clk 0:01:19]} 26. Qa5 {[%clk 0:01:03]}  Rd1 {[%clk 0:01:16]} 27. g3 {[%clk 0:01:01]}  h6 {[%clk 0:01:01]} 28. Rxd1 {[%clk 0:01:01]}  Qxd1+ {[%clk 0:01:01]} 29. Kg2 {[%clk 0:01:02]}  Qc2 {[%clk 0:00:57]} 30. Qa8+ {[%clk 0:00:59]}  Kh7 {[%clk 0:00:57]} 31. Ne3 {[%clk 0:00:59]}  Qb1 {[%clk 0:00:51]} 32. Qf3 {[%clk 0:00:39]}  Qxa2 {[%clk 0:00:48]} 33. Nd5 {[%clk 0:00:40]}  Qb2 {[%clk 0:00:42]} 34. b4 {[%clk 0:00:24]}  Kg8 {[%clk 0:00:24]} 35. Nxf6+ {[%clk 0:00:17]}  gxf6 {[%clk 0:00:25]} 36. Qb7 {[%clk 0:00:17]}  f5 {[%clk 0:00:23]} 37. b5 {[%clk 0:00:17]}  f4 {[%clk 0:00:22]} 38. Qc6 {[%clk 0:00:15]}  Qb3 {[%clk 0:00:19]} 39. b6 {[%clk 0:00:06]}  f3+ {[%clk 0:00:17]} 40. Kh3 {[%clk 0:00:06]}  Qd3 {[%clk 0:00:15]} 41. b7 {[%clk 0:00:03]}  Qf5+ {[%clk 0:00:03]} 42. g4 {[%clk 0:00:03]}  Qe5 {[%clk 0:00:01]} 43. Qc8+ {[%clk 0:00:03]} 1-0


[Site "https://www.chess.com"]

[Event "Titled Tuesday Blitz February 01 A 2022"]
[White "Hess, Robert"]
[Black "Makarian, Rudik"]
[WhiteFideId "2022036"]
[BlackFideId "44105681"]
[WhiteElo "2808"]
[BlackElo "2902"]
[Result "1-0"]
[Round "06"]
[TimeControl "180+1"]
[Date "2022.02.01"]
[WhiteClock "0:00:07"]
[BlackClock "0:00:30"]

1. g3 {[%clk 0:03:00]}  Nf6 {[%clk 0:02:54]} 2. Bg2 {[%clk 0:03:01]}  e6 {[%clk 0:02:55]} 3. b3 {[%clk 0:02:57]}  d5 {[%clk 0:02:49]} 4. Bb2 {[%clk 0:02:58]}  c5 {[%clk 0:02:49]} 5. d3 {[%clk 0:02:58]}  Nc6 {[%clk 0:02:50]} 6. Nd2 {[%clk 0:02:58]}  Be7 {[%clk 0:02:47]} 7. e3 {[%clk 0:02:59]}  O-O {[%clk 0:02:48]} 8. Ne2 {[%clk 0:03:00]}  b6 {[%clk 0:02:47]} 9. h3 {[%clk 0:03:00]}  Bb7 {[%clk 0:02:48]} 10. g4 {[%clk 0:03:00]}  Nd7 {[%clk 0:02:47]} 11. a3 {[%clk 0:02:45]}  a5 {[%clk 0:02:44]} 12. Nc3 {[%clk 0:02:38]}  d4 {[%clk 0:02:32]} 13. exd4 {[%clk 0:02:32]}  cxd4 {[%clk 0:02:33]} 14. Nb5 {[%clk 0:02:26]}  e5 {[%clk 0:02:31]} 15. Nc4 {[%clk 0:02:20]}  Qb8 {[%clk 0:02:16]} 16. O-O {[%clk 0:02:09]}  Nd8 {[%clk 0:02:14]} 17. Re1 {[%clk 0:01:58]}  a4 {[%clk 0:02:06]} 18. Nxd4 {[%clk 0:01:44]}  b5 {[%clk 0:01:55]} 19. Nf5 {[%clk 0:01:32]}  Bc5 {[%clk 0:01:49]} 20. Nxe5 {[%clk 0:01:22]}  Nxe5 {[%clk 0:01:38]} 21. Bxe5 {[%clk 0:01:14]}  Qa7 {[%clk 0:01:38]} 22. d4 {[%clk 0:01:14]}  f6 {[%clk 0:01:37]} 23. dxc5 {[%clk 0:00:47]}  Bxg2 {[%clk 0:01:34]} 24. Kxg2 {[%clk 0:00:45]}  fxe5 {[%clk 0:01:33]} 25. Qd5+ {[%clk 0:00:43]}  Nf7 {[%clk 0:01:31]} 26. Rxe5 {[%clk 0:00:39]}  Rad8 {[%clk 0:01:31]} 27. Nd6 {[%clk 0:00:32]}  Rd7 {[%clk 0:00:39]} 28. Rae1 {[%clk 0:00:27]}  axb3 {[%clk 0:00:39]} 29. cxb3 {[%clk 0:00:24]}  Qxa3 {[%clk 0:00:38]} 30. Re8 {[%clk 0:00:21]}  g6 {[%clk 0:00:31]} 31. Rxf8+ {[%clk 0:00:18]}  Kxf8 {[%clk 0:00:32]} 32. Re8+ {[%clk 0:00:18]}  Kg7 {[%clk 0:00:32]} 33. Qd4+ {[%clk 0:00:18]}  Kh6 {[%clk 0:00:33]} 34. Nf5+ {[%clk 0:00:10]}  gxf5 {[%clk 0:00:30]} 35. Qf6# {[%clk 0:00:07]} 1-0


[Site "https://www.chess.com"]

[Event "Titled Tuesday Blitz February 01 A 2022"]
[White "Kamsky, Gata"]
[Black "Beerdsen, Thomas"]
[WhiteFideId "2000024"]
[BlackFideId "1030108"]
[WhiteElo "2645"]
[BlackElo "2585"]
[Result "1-0"]
[Round "06"]
[TimeControl "180+1"]
[Date "2022.02.01"]
[WhiteClock "0:00:46"]
[BlackClock "0:00:45"]

1. e4 {[%clk 0:03:00]}  e5 {[%clk 0:02:57]} 2. Nf3 {[%clk 0:03:00]}  Nc6 {[%clk 0:02:58]} 3. Bb5 {[%clk 0:02:59]}  f5 {[%clk 0:02:58]} 4. Nc3 {[%clk 0:02:57]}  fxe4 {[%clk 0:02:58]} 5. Nxe4 {[%clk 0:02:56]}  Nf6 {[%clk 0:02:59]} 6. Qe2 {[%clk 0:02:54]}  d5 {[%clk 0:02:59]} 7. Nxf6+ {[%clk 0:02:53]}  gxf6 {[%clk 0:03:00]} 8. d4 {[%clk 0:02:53]}  Bg7 {[%clk 0:03:00]} 9. dxe5 {[%clk 0:02:51]}  O-O {[%clk 0:03:01]} 10. e6 {[%clk 0:02:29]}  Re8 {[%clk 0:02:52]} 11. O-O {[%clk 0:02:26]}  Bxe6 {[%clk 0:02:49]} 12. Qd3 {[%clk 0:02:12]}  Ne5 {[%clk 0:02:47]} 13. Nxe5 {[%clk 0:02:11]}  fxe5 {[%clk 0:02:47]} 14. Bxe8 {[%clk 0:02:11]}  Qxe8 {[%clk 0:02:48]} 15. Qg3 {[%clk 0:02:09]}  Kh8 {[%clk 0:02:36]} 16. f4 {[%clk 0:02:07]}  Bf5 {[%clk 0:02:20]} 17. fxe5 {[%clk 0:02:06]}  Qe6 {[%clk 0:02:21]} 18. Bg5 {[%clk 0:01:54]}  Rg8 {[%clk 0:02:18]} 19. Rae1 {[%clk 0:01:37]}  Be4 {[%clk 0:02:17]} 20. Re2 {[%clk 0:01:37]}  h6 {[%clk 0:01:52]} 21. Bf6 {[%clk 0:01:29]}  Kh7 {[%clk 0:01:51]} 22. Qe3 {[%clk 0:01:11]}  Bf8 {[%clk 0:01:45]} 23. Rf4 {[%clk 0:00:57]}  Rg6 {[%clk 0:01:28]} 24. h3 {[%clk 0:00:51]}  b6 {[%clk 0:01:12]} 25. Rxe4 {[%clk 0:00:50]}  dxe4 {[%clk 0:01:13]} 26. Qxe4 {[%clk 0:00:50]}  Qxa2 {[%clk 0:01:10]} 27. e6 {[%clk 0:00:46]}  Bc5+ {[%clk 0:00:45]} 28. Kh1 {[%clk 0:00:46]} 1-0


[Site "https://www.chess.com"]

[Event "Titled Tuesday Blitz February 01 A 2022"]
[White "Kravtsiv, Martyn"]
[Black "Nazari, Arad"]
[WhiteFideId "14113147"]
[BlackFideId "12577324"]
[WhiteElo "2694"]
[BlackElo "2120"]
[Result "1-0"]
[Round "06"]
[TimeControl "180+1"]
[Date "2022.02.01"]
[WhiteClock "0:00:18"]
[BlackClock "0:00:02"]

1. e4 {[%clk 0:03:00]}  c5 {[%clk 0:02:32]} 2. Nf3 {[%clk 0:03:00]}  d6 {[%clk 0:02:32]} 3. Bb5+ {[%clk 0:02:59]}  Nd7 {[%clk 0:02:32]} 4. d4 {[%clk 0:02:58]}  cxd4 {[%clk 0:02:32]} 5. Qxd4 {[%clk 0:02:59]}  a6 {[%clk 0:02:31]} 6. Bxd7+ {[%clk 0:02:58]}  Bxd7 {[%clk 0:02:31]} 7. O-O {[%clk 0:02:58]}  Rc8 {[%clk 0:02:31]} 8. c4 {[%clk 0:02:58]}  e5 {[%clk 0:02:30]} 9. Qd3 {[%clk 0:02:57]}  b5 {[%clk 0:02:30]} 10. Na3 {[%clk 0:02:57]}  Qb6 {[%clk 0:02:21]} 11. cxb5 {[%clk 0:02:57]}  axb5 {[%clk 0:02:20]} 12. Bd2 {[%clk 0:02:56]}  Be7 {[%clk 0:02:18]} 13. Rac1 {[%clk 0:02:56]}  Rxc1 {[%clk 0:02:17]} 14. Rxc1 {[%clk 0:02:56]}  Nf6 {[%clk 0:02:17]} 15. Bb4 {[%clk 0:02:57]}  Ng4 {[%clk 0:02:02]} 16. Qe2 {[%clk 0:02:47]}  O-O {[%clk 0:01:55]} 17. h3 {[%clk 0:02:46]}  Nh6 {[%clk 0:01:55]} 18. Nxe5 {[%clk 0:02:44]}  dxe5 {[%clk 0:01:55]} 19. Bxe7 {[%clk 0:02:44]}  Re8 {[%clk 0:01:55]} 20. Bb4 {[%clk 0:02:39]}  f6 {[%clk 0:01:50]} 21. Qd3 {[%clk 0:02:31]}  Be6 {[%clk 0:01:44]} 22. b3 {[%clk 0:02:27]}  Ra8 {[%clk 0:01:37]} 23. Qxb5 {[%clk 0:02:25]}  Qxb5 {[%clk 0:01:37]} 24. Nxb5 {[%clk 0:02:25]}  Rxa2 {[%clk 0:01:36]} 25. Rc6 {[%clk 0:01:43]}  Bxb3 {[%clk 0:01:27]} 26. Rc8+ {[%clk 0:01:28]}  Kf7 {[%clk 0:01:26]} 27. g4 {[%clk 0:01:27]}  Kg6 {[%clk 0:01:20]} 28. Nd6 {[%clk 0:01:28]}  Nf7 {[%clk 0:01:02]} 29. Nf5 {[%clk 0:01:17]}  Ng5 {[%clk 0:01:01]} 30. Rc7 {[%clk 0:01:13]}  Ne6 {[%clk 0:00:34]} 31. Re7 {[%clk 0:01:05]}  Ra4 {[%clk 0:00:31]} 32. Bd2 {[%clk 0:01:04]}  h6 {[%clk 0:00:22]} 33. Rb7 {[%clk 0:00:59]}  Bc2 {[%clk 0:00:19]} 34. Re7 {[%clk 0:00:57]}  Bb3 {[%clk 0:00:17]} 35. Rb7 {[%clk 0:00:52]}  Bc2 {[%clk 0:00:16]} 36. f3 {[%clk 0:00:53]}  Rc4 {[%clk 0:00:12]} 37. Re7 {[%clk 0:00:50]}  Rc6 {[%clk 0:00:13]} 38. h4 {[%clk 0:00:45]}  Bd1 {[%clk 0:00:06]} 39. Kf2 {[%clk 0:00:41]}  Ra6 {[%clk 0:00:04]} 40. h5+ {[%clk 0:00:38]}  Kh7 {[%clk 0:00:05]} 41. Bxh6 {[%clk 0:00:38]}  Kg8 {[%clk 0:00:04]} 42. Bxg7 {[%clk 0:00:32]}  Ra2+ {[%clk 0:00:02]} 43. Kg3 {[%clk 0:00:30]}  Nf4 {[%clk 0:00:02]} 44. Bxf6 {[%clk 0:00:24]}  Rg2+ {[%clk 0:00:02]} 45. Kh4 {[%clk 0:00:24]}  Bxf3 {[%clk 0:00:01]} 46. Rg7+ {[%clk 0:00:19]}  Kf8 {[%clk 0:00:02]} 47. Bxe5 {[%clk 0:00:19]}  Bxe4 {[%clk 0:00:02]} 48. Bd6+ {[%clk 0:00:17]}  Ke8 {[%clk 0:00:03]} 49. Re7+ {[%clk 0:00:17]}  Kd8 {[%clk 0:00:02]} 50. Rxe4 {[%clk 0:00:18]} 1-0


[Site "https://www.chess.com"]